bitfinex-derivatives/quotes_ETHF0:USTF0_20251119
["timestamp","ask_amount","ask_price","bid_price","bid_amount"]
[1763567051011,1.07901,3005.0,3004.7,3.21279709]
[1763567051508,3.2078,3004.8,3004.7,0.00499709]
[1763567051703,3.2078,3004.8,3004.0,0.7587]
[1763567051904,1.07922,3004.4,3004.0,0.7587]
[1763567053308,1.07922,3004.4,3004.3,3.2078]
[1763567054103,1.07924,3004.3,3004.0,0.7587]
[1763567054310,1.07924,3004.3,3003.9,3.21279709]
[1763567055108,3.2078,3004.4,3003.9,0.00499709]
[1763567055306,1.07934,3004.0,3003.9,0.00499709]
[1763567057208,3.2078,3004.4,3003.9,0.00499709]
[1763567057411,0.00346679,3005.2,3004.2,3.2078]
[1763567057412,0.53956,3004.6,3004.2,3.2078]
[1763567057719,3.2078,3004.8,3004.2,3.2078]
[1763567058014,3.75071679,3005.2,3005.1,0.7587]
[1763567058312,0.00346679,3005.2,3005.1,3.9665]
[1763567058702,3.2078,3006.2,3005.8,0.7587]
[1763567058915,1.07841,3006.6,3005.9,3.2078]
[1763567059109,3.2078,3006.4,3005.9,3.2078]
[1763567059313,3.2078,3006.4,3005.8,0.7587]
[1763567059712,3.21039817,3006.4,3005.8,0.76689814]
[1763567060016,0.00759526,3006.4,3005.9,3.2078]
[1763567060712,3.2078,3007.2,3006.4,0.7587]
[1763567060916,3.2078,3006.7,3006.4,0.7587]
[1763567061505,3.2078,3006.7,3005.9,3.2078]
[1763567061705,0.00498852,3006.6,3006.4,0.7587]
[1763567061918,1.07814,3007.4,3006.4,0.7587]
[1763567062120,1.07814,3007.4,3007.2,0.7587]
[1763567062323,3.2078,3007.7,3007.2,0.7587]
[1763567062612,1.07788,3008.1,3007.5,3.2078]
[1763567062813,1.08200693,3008.1,3007.5,3.2078]
[1763567063021,1.08531833,3008.1,3007.5,3.21278852]
[1763567063209,1.08531833,3008.1,3008.0,0.7587]
[1763567063515,0.00743833,3008.1,3008.0,0.76117982]
[1763567064921,0.53875,3009.2,3008.8,0.6952]
[1763567065715,0.54121241,3009.2,3008.8,0.6952]
[1763567066410,0.54121241,3009.2,3009.0,3.2078]
[1763567066615,0.00246241,3009.2,3009.0,3.2078]
[1763567067324,0.00246241,3009.2,3008.8,0.6952]
[1763567067619,1.07756,3009.0,3008.4,3.2078]
[1763567067810,1.07776,3008.5,3008.0,0.76117982]
[1763567068006,1.07786,3008.1,3008.0,0.00247982]
[1763567068408,7.07786,3008.1,3008.0,0.00247982]
[1763567068716,7.07786,3008.1,3007.5,0.00498852]
[1763567068717,6.0,3008.1,3007.5,0.00498852]
[1763567068913,3.2078,3007.6,3006.4,3.9665]
[1763567069120,2.68380701,3008.4,3006.4,3.9665]
[1763567069121,3.2078,3006.8,3006.4,3.9665]
[1763567069419,1.07852,3006.3,3005.5,3.2078]
[1763567069616,1.07862,3006.1,3005.6,0.00396163]
[1763567070021,3.21278851,3006.2,3005.6,0.00396163]
[1763567070222,3.2078,3005.8,3005.6,0.00396163]
[1763567071013,3.21278851,3006.2,3005.6,0.00396163]
[1763567071815,3.75207851,3006.2,3005.6,0.00396163]
[1763567072023,4.29136851,3006.2,3005.6,0.00396163]
[1763567072719,4.29136851,3006.2,3006.0,0.7051]
[1763567072922,0.00498851,3006.2,3006.0,0.7051]
[1763567073721,0.00498851,3006.2,3005.6,0.00396163]
[1763567073722,1.08354851,3006.2,3005.6,0.00396163]
[1763567074221,0.53929,3006.1,3005.6,0.70906163]
[1763567074427,0.53931,3006.1,3005.6,0.70906163]
[1763567074728,1.07863,3006.0,3005.6,0.00396163]
[1763567075424,1.07863,3006.0,3005.6,0.70906163]
[1763567075626,1.07863,3006.0,3005.9,3.2078]
[1763567076520,1.07863,3006.0,3005.6,0.70906163]
[1763567076721,3.2078,3005.7,3004.6,3.2078]
[1763567077519,0.00498851,3006.2,3004.6,3.2078]
[1763567077520,1.07896,3005.1,3004.6,3.2078]
[1763567077715,3.2078,3005.3,3004.6,3.21045555]
[1763567078329,1.07908,3004.8,3004.6,3.21045555]
[1763567078525,1.07908,3004.8,3004.6,0.00265555]
[1763567079426,1.07908,3004.7,3004.6,0.00265555]
[1763567080224,1.07878,3005.6,3004.6,0.00265555]
[1763567080426,1.07878,3005.6,3004.9,3.2078]
[1763567080626,3.2078,3006.1,3005.6,0.7051]
[1763567080831,3.2078,3006.1,3004.9,3.2078]
[1763567081226,1.0788,3005.6,3004.9,3.2078]
[1763567081725,0.00498851,3006.2,3004.8,0.7051]
[1763567081726,3.2078,3005.3,3004.8,0.7051]
[1763567081931,1.07902,3004.9,3004.6,0.00265555]
[1763567084136,1.07902,3004.9,3004.8,0.7051]
[1763567086230,3.2078,3005.3,3004.8,0.7051]
[1763567087034,4.28668,3005.3,3004.8,0.7051]
[1763567087437,1.07898,3005.0,3004.8,0.7051]
[1763567088125,1.07898,3005.0,3004.6,0.00265555]
[1763567090033,3.2078,3004.8,3004.6,0.00265555]
[1763567090533,1.07908,3004.7,3004.6,0.00265555]
[1763567090737,3.2078,3005.2,3004.6,0.00265555]
[1763567091031,4.28672,3005.2,3004.6,3.21045555]
[1763567091438,4.28672,3005.2,3004.8,0.7051]
[1763567091628,3.2078,3005.7,3004.8,0.7051]
[1763567091935,1.07872,3005.8,3005.6,0.7051]
[1763567092333,1.07888,3005.3,3004.8,0.7051]
[1763567092530,1.07888,3005.3,3004.9,3.2078]
[1763567093838,1.07888,3005.3,3004.8,0.7051]
[1763567094028,1.07892,3005.2,3004.8,0.7051]
[1763567094534,1.079,3005.0,3004.8,0.7051]
[1763567094838,0.53953,3004.8,3004.6,0.00265555]
[1763567095035,3.2078,3005.1,3004.6,0.00265555]
[1763567095036,0.53954,3004.7,3004.6,0.00265555]
[1763567096033,12.53580001,3004.7,3003.1,3.2078]
[1763567096233,3.2078,3003.7,3002.7,3.2078]
[1763567096537,3.2078,3003.7,3002.3,3.9129]
[1763567096538,1.0797,3003.0,3002.3,3.9129]
[1763567096941,1.0797,3003.0,3002.7,3.2078]
[1763567097139,1.07976,3002.9,3002.7,0.00250813]
[1763567098244,0.00357101,3003.0,3002.7,0.00250813]
[1763567099239,0.00498852,3003.2,3002.7,6.00250813]
[1763567099427,0.53966,3004.1,3003.2,0.7051]
[1763567099939,1.07932,3004.1,3003.8,3.2078]
[1763567100138,3.2078,3004.6,3003.8,3.2078]
[1763567100336,3.2078,3004.2,3003.9,0.00498852]
[1763567100532,1.07934,3004.0,3003.2,0.7051]
[1763567101242,3.2078,3003.8,3003.2,0.7051]
[1763567101437,4.28724,3003.8,3003.2,0.71008852]
[1763567101936,3.2078,3003.8,3003.2,0.00498852]
[1763567102336,1.07978,3002.8,3002.7,0.00250813]
[1763567102636,3.2078,3002.9,3001.7,3.2078]
[1763567102837,3.2078,3002.5,3001.7,3.2078]
[1763567103438,0.00498852,3002.4,3001.8,0.00498852]
[1763567103637,0.00902958,3002.4,3001.8,0.00498852]
[1763567103833,3.21682958,3002.4,3001.8,0.00498852]
[1763567104029,1.08024,3001.6,3000.9,3.2078]
[1763567104340,1.0802,3001.7,3000.9,3.2078]
[1763567104528,1.08036,3001.2,3000.5,3.2078]
[1763567104731,3.2078,3001.0,3000.3,3.2078]
[1763567105129,4.28824,3001.0,3000.3,3.2160641]
[1763567105333,1.08046,3000.9,3000.3,3.2160641]
[1763567105529,1.08046,3000.9,3000.3,0.0082641]
[1763567105734,3.2078,3000.6,3000.3,0.0082641]
[1763567106135,3.2078,3000.6,2999.3,11.991]
[1763567106136,9.2078,3000.6,2999.3,3.2078]
[1763567106443,3.2157951,3000.8,2998.8,3.2078]
[1763567106444,4.2887,2999.7,2998.8,3.2078]
[1763567106640,3.2078,2999.4,2998.8,3.2078]
[1763567106838,3.2078,2999.4,2998.5,3.2078]
[1763567107137,0.00499699,2999.2,2998.7,0.0033455]
[1763567107342,3.2078,2999.1,2998.7,0.0033455]
[1763567107940,4.28891,2999.1,2998.7,0.0033455]
[1763567108143,4.28903,2998.8,2998.5,0.00377695]
[1763567108347,1.08125,2998.7,2997.7,3.2078]
[1763567108647,3.2078,2998.4,2997.6,0.6139]
[1763567108841,3.2078,2998.4,2997.6,3.8217]
[1763567109242,3.2078,2998.1,2997.6,0.6139]
[1763567109540,4.28938,2997.8,2997.6,0.00299039]
[1763567109739,4.28938,2997.8,2996.4,1.662]
[1763567109740,1.0816,2997.7,2996.4,1.662]
[1763567109944,3.2078,2997.0,2996.2,3.2078]
[1763567110438,3.2078,2997.3,2996.2,3.2078]
[1763567110640,0.00499699,2997.5,2995.6,3.2078]
[1763567110641,1.08191,2996.9,2995.6,3.2078]
[1763567110837,3.2078,2996.4,2996.0,0.61759076]
[1763567111042,3.2078,2996.1,2996.0,0.61759076]
[1763567111245,3.2078,2996.4,2996.0,0.61759076]
[1763567111539,3.2078,2996.1,2995.2,0.6139]
[1763567111743,3.2078,2995.8,2995.2,0.6139]
[1763567112039,3.2078,2995.5,2994.5,3.2078]
[1763567112250,3.2078,2994.6,2993.2,0.09064158]
[1763567112438,4.29078,2993.9,2993.2,0.09064158]
[1763567112638,3.2078,2993.6,2992.5,0.6139]
[1763567112851,0.54156,2993.5,2990.9,3.143]
[1763567113044,3.21079811,2993.0,2990.2,6.63230873]
[1763567113243,3.21079811,2993.0,2988.9,0.6139]
[1763567113244,0.1,2991.0,2989.1,3.21079811]
[1763567113540,0.1,2991.0,2990.3,0.05817832]
[1763567113739,1.08356,2992.3,2990.9,0.6139]
[1763567113946,1.08366,2992.0,2991.6,0.5216528]
[1763567114134,0.00501404,2990.9,2990.4,3.2078]
[1763567114334,0.00501404,2990.9,2990.8,3.2078]
[1763567114635,3.21281404,2990.9,2990.3,0.0043115]
[1763567114842,3.2078,2990.6,2990.3,0.0043115]
[1763567115237,3.3432,2990.5,2989.3,3.2078]
[1763567115439,3.2078,2989.9,2988.3,3.2078]
[1763567115634,3.2078,2990.2,2988.7,0.6139]
[1763567115844,4.4204966,2990.4,2989.8,3.8217]
[1763567116045,0.00301938,2990.9,2990.3,3.2078]
[1763567116241,0.00501404,2990.4,2990.3,0.004024]
[1763567116444,0.00501404,2990.4,2990.3,3.34801221]
[1763567117343,3.2078,2991.3,2990.8,3.33595479]
[1763567117538,3.2078,2991.7,2991.6,0.6139]
[1763567117851,3.2078,2992.9,2992.8,0.6139]
[1763567118047,0.54148,2994.0,2992.8,0.6139]
[1763567118048,3.2078,2993.5,2992.8,0.75768017]
[1763567118451,0.00501404,2993.4,2992.9,0.00501404]
[1763567118642,0.00501404,2993.4,2993.2,0.14378017]
[1763567118844,0.00501404,2993.4,2993.3,0.14378017]
[1763567119044,3.21281404,2993.4,2993.3,0.14378017]
[1763567119344,6.00501404,2993.4,2992.9,0.00501404]
[1763567119538,1.08337,2992.9,2991.7,3.2078]
[1763567119843,1.08337,2992.9,2991.7,3.44]
[1763567120039,3.2078,2992.6,2991.6,0.6139]
[1763567120240,3.2078,2992.3,2991.6,0.6139]
[1763567120540,3.2078,2992.6,2991.8,3.2078]
[1763567120850,0.00501404,2993.4,2992.4,3.2078]
[1763567121050,0.00501404,2993.4,2992.8,0.6139]
[1763567121350,3.2078,2993.1,2992.4,3.2078]
[1763567121849,3.2078,2992.6,2991.8,6.6608]
[1763567122146,3.2078,2991.9,2990.6,3.2078]
[1763567122347,3.2078,2991.3,2990.7,3.2078]
[1763567122547,3.2078,2991.3,2990.3,3.2078]
[1763567122845,0.00501404,2991.5,2990.6,3.2078]
[1763567123245,0.00900208,2991.5,2991.2,3.2078]
[1763567123452,3.2078,2992.1,2991.1,3.2078]
[1763567123745,3.2078,2991.8,2991.6,0.6139]
[1763567123949,3.2078,2992.1,2991.6,0.6139]
[1763567124140,1.08358,2992.3,2991.6,0.6139]
[1763567124454,0.00501404,2992.2,2991.8,3.2078]
[1763567124642,3.2078,2992.0,2991.7,0.00501404]
[1763567125152,3.3424,2991.9,2990.7,3.2078]
[1763567125451,3.2078,2991.0,2989.9,3.2078]
[1763567125646,3.2078,2990.7,2989.9,3.2078]
[1763567125847,9.2078,2990.7,2989.5,3.2078]
[1763567126046,9.2078,2990.7,2989.3,3.106]
[1763567126047,3.2078,2989.9,2989.3,3.106]
[1763567126255,4.29238,2989.6,2988.8,3.2078]
[1763567126440,3.2078,2989.3,2988.5,3.2078]
[1763567126856,3.21191396,2989.3,2988.8,3.2078]
[1763567127052,3.2078,2990.1,2989.2,3.959]
[1763567127255,3.2078,2991.0,2989.8,3.2078]
[1763567127548,3.2078,2990.7,2989.5,3.2078]
[1763567127748,0.54211,2990.5,2989.4,3.2078]
[1763567127955,3.2078,2990.4,2989.7,3.2078]
[1763567128153,0.00350808,2990.4,2990.0,3.2078]
[1763567128347,0.00350808,2990.4,2989.9,0.00501404]
[1763567128547,3.21130808,2990.4,2989.9,0.00501404]
[1763567128747,3.2078,2990.1,2988.8,3.2078]
[1763567128952,3.2078,2988.9,2988.5,0.0035145]
[1763567129454,3.2078,2988.6,2987.0,3.2078]
[1763567129656,0.00501404,2988.1,2987.0,3.2078]
[1763567129849,0.00501404,2988.1,2987.5,3.22177811]
[1763567130044,0.00501404,2988.1,2987.5,0.01397811]
[1763567130045,3.21281404,2988.1,2987.5,0.01397811]
[1763567130250,3.2078,2987.7,2986.3,3.2078]
[1763567130445,1.08807705,2987.7,2987.1,3.2078]
[1763567130750,1.08807705,2987.7,2986.7,0.09359816]
[1763567130751,0.00501404,2988.1,2988.0,0.7512]
[1763567130951,3.2078,2990.0,2988.0,5.517]
[1763567131150,3.2078,2990.0,2989.1,3.2078]
[1763567131343,3.2078,2989.4,2988.4,4.0628]
[1763567131544,3.2078,2989.0,2988.0,3.959]
[1763567131746,0.00304897,2989.0,2988.7,3.2078]
[1763567131943,0.00304897,2989.0,2988.6,3.21281404]
[1763567132145,0.00304897,2989.0,2988.6,0.00501404]
[1763567132353,3.2078,2988.7,2988.6,0.00501404]
[1763567132756,10.29266,2988.7,2988.0,0.00316988]
[1763567132958,3.2078,2988.2,2988.0,0.00316988]
[1763567133660,0.54265,2987.5,2986.3,3.2078]
[1763567133862,0.54278,2986.8,2986.1,3.2078]
[1763567134162,0.54301,2985.5,2985.4,3.2078]
[1763567134353,3.2078,2985.7,2985.0,3.2078]
[1763567134555,3.2078,2985.7,2985.4,3.2078]
[1763567134556,0.00840978,2985.7,2985.4,3.2078]
[1763567134859,4.30820875,2987.3,2985.4,3.2078]
[1763567135050,3.2078,2987.3,2986.6,3.2078]
[1763567135372,3.2078,2988.2,2987.0,3.2078]
[1763567135553,3.75042,2987.7,2986.9,3.2078]
[1763567135749,3.21282268,2987.6,2987.0,0.00502268]
[1763567135954,0.00502268,2987.6,2987.2,3.2078]
[1763567136155,3.75045,2987.5,2987.2,0.00427723]
[1763567136356,3.75045,2987.5,2987.0,0.00502268]
[1763567136563,0.54265,2987.5,2987.0,3.21282268]
[1763567136757,3.75045,2987.5,2987.0,0.00502268]
[1763567137060,0.00502268,2987.6,2987.2,3.2078]
[1763567137258,0.00502268,2987.6,2987.2,3.21015525]
[1763567137455,3.75034,2988.2,2987.5,3.2078]
[1763567137658,3.2078,2987.9,2987.2,3.21015525]
[1763567137957,3.75034,2988.2,2987.2,3.21015525]
[1763567138153,0.54262,2987.7,2987.2,3.21015525]
[1763567138354,0.54265,2987.5,2987.2,0.00235525]
[1763567138549,0.00318803,2987.5,2987.2,0.00235525]
[1763567139165,4.29318,2987.3,2987.2,0.00235525]
[1763567139557,1.08538,2987.3,2987.2,0.00235525]
[1763567141155,0.00318803,2987.5,2987.2,0.00235525]
[1763567142263,1.08535,2987.4,2987.2,0.00235525]
[1763567142766,0.00318803,2987.5,2987.1,3.2078]
[1763567143070,3.2078,2989.0,2987.4,3.2078]
[1763567143261,1.08466,2989.3,2988.6,3.2078]
[1763567143459,1.08466,2989.3,2988.7,0.7603]
[1763567143662,1.08466,2989.3,2988.9,3.2078]
[1763567143977,0.00416219,2989.3,2989.2,3.2078]
[1763567144464,0.00502268,2989.5,2989.2,9.2078]
[1763567144659,0.54218,2990.1,2989.2,9.2078]
[1763567144863,0.54218,2990.1,2989.0,0.00502268]
[1763567144864,0.53519691,2990.1,2989.4,3.2078]
[1763567145168,3.2078,2990.4,2989.1,3.2078]
[1763567145366,3.2078,2990.1,2989.2,3.2078]
[1763567145562,1.08455,2989.6,2989.2,3.2078]
[1763567145760,0.00502268,2989.9,2989.2,3.2078]
[1763567145971,0.00502268,2989.9,2989.8,3.2078]
[1763567146165,0.00502268,2989.9,2989.2,3.2078]
[1763567146366,0.00502268,2989.9,2989.5,3.2078]
[1763567146659,0.00502268,2989.9,2989.8,3.9681]
[1763567146860,0.54203,2990.9,2989.8,3.9681]
[1763567147061,3.2078,2991.5,2990.3,3.2078]
[1763567147258,3.2078,2991.5,2990.7,3.2078]
[1763567147974,0.00501412,2991.4,2991.2,3.2078]
[1763567148172,0.00501412,2991.4,2991.2,3.21078488]
[1763567149680,1.412e-05,2991.4,2991.2,3.21078488]
[1763567150069,1.412e-05,2991.4,2991.3,3.48]
[1763567150964,0.54176,2992.4,2991.3,3.48]
[1763567151166,0.54176,2992.4,2991.8,3.2078]
[1763567151665,1.0837,2991.9,2991.8,3.2078]
[1763567151975,1.0839,2991.4,2991.2,0.00298488]
[1763567152470,0.00367292,2991.9,2991.2,0.00298488]
[1763567152778,0.00367292,2991.9,2991.5,3.2078]
[1763567153075,0.00367292,2991.9,2991.5,5.0528]
[1763567153278,0.00367292,2991.9,2991.8,3.2078]
[1763567154369,0.00501412,2992.1,2992.0,0.7603]
[1763567154862,1.412e-05,2992.1,2992.0,4.2333]
[1763567155075,0.54157,2993.5,2992.0,10.2333]
[1763567155268,0.54157,2993.5,2992.6,3.2078]
[1763567155477,0.54162,2993.2,2992.6,2.48]
[1763567155767,3.74946,2993.0,2992.2,4.5378]
[1763567155973,1.0835,2992.5,2991.8,3.2078]
[1763567156171,1.0835,2992.5,2992.2,0.00501412]
[1763567156569,1.0835,2992.5,2992.4,3.2078]
[1763567156769,1.08318,2993.4,2992.4,3.2078]
[1763567156964,1.08318,2993.4,2992.9,3.2078]
[1763567157973,1.08318,2993.4,2992.2,12.04801412]
[1763567157974,1.08328,2993.1,2992.6,3.2078]
[1763567158862,1.08328,2993.1,2992.9,3.2078]
[1763567159172,1.08328,2993.1,2993.0,0.7603]
[1763567159572,1.0833,2993.0,2992.6,3.2078]
[1763567159968,3.2078,2993.1,2992.2,0.00501412]
[1763567160176,1.08354,2992.4,2992.2,0.00501412]
[1763567160373,1.08356,2992.3,2992.2,0.00501412]
[1763567160562,4.29136,2992.3,2992.2,0.00501412]
[1763567160767,1.08356,2992.3,2992.2,0.00501412]
[1763567161171,4.29136,2992.3,2992.2,0.00501412]
[1763567161370,0.54186,2991.9,2991.3,3.2078]
[1763567161864,0.54181,2992.2,2991.7,3.2078]
[1763567162075,1.08376,2991.8,2991.2,0.00298488]
[1763567162265,1.0839,2991.4,2991.2,0.00298488]
[1763567162469,0.00328407,2991.4,2991.3,3.2078]
[1763567162774,0.00501412,2991.6,2991.3,3.2078]
[1763567162972,0.00501412,2991.6,2991.4,3.464]
[1763567163178,3.21281412,2991.6,2991.2,0.00298488]
[1763567163564,0.00501412,2991.6,2991.2,0.00298488]
[1763567163882,0.0078325,2991.6,2991.2,3.21078488]
[1763567164067,3.2078,2992.4,2991.5,3.2078]
[1763567164270,3.2078,2992.4,2991.2,3.21078488]
[1763567164469,1.08362,2992.2,2991.6,3.2078]
[1763567165176,1.08362,2992.2,2991.2,0.00298488]
[1763567165177,1.08609877,2992.2,2991.9,3.2078]
[1763567165681,1.08366,2992.0,2991.3,6.6688]
[1763567165977,1.08366,2992.0,2991.3,3.2078]
[1763567166176,0.54183,2992.0,2991.7,3.2078]
[1763567166375,0.00247877,2992.2,2991.2,0.00298488]
[1763567166376,0.00247877,2992.2,2991.4,3.2078]
[1763567166570,0.00247877,2992.2,2991.2,0.00298488]
[1763567166571,3.2078,2991.8,2991.2,0.00298488]
[1763567166773,1.08415,2990.7,2990.2,3.2078]
[1763567166973,1.08428,2990.3,2989.6,3.2078]
[1763567167172,1.08436,2990.1,2989.6,3.2078]
[1763567167683,0.00924913,2990.1,2989.6,0.00875181]
[1763567167882,1.0845,2989.7,2989.6,0.00875181]
[1763567168477,0.00924913,2990.1,2989.6,0.00875181]
[1763567168675,1.08396,2991.2,2990.0,0.6658]
[1763567168881,1.08396,2991.2,2990.7,3.2078]
[1763567169081,1.08396,2991.2,2990.4,3.2078]
[1763567169275,4.29176,2991.2,2990.1,3.2078]
[1763567169481,3.2078,2990.9,2990.1,3.2078]
[1763567169675,0.00310827,2990.9,2990.5,3.2078]
[1763567170380,1.08718827,2990.9,2990.2,0.00501412]
[1763567170588,0.00310827,2990.9,2990.2,0.00501412]
[1763567170775,0.00310827,2990.9,2990.2,3.21281412]
[1763567171086,0.00310827,2990.9,2990.5,3.2078]
[1763567171478,0.00310827,2990.9,2990.2,3.21281412]
[1763567171678,1.08411,2990.8,2990.2,0.00501412]
[1763567171878,3.2078,2990.8,2990.2,0.00501412]
[1763567172077,1.0845,2989.8,2989.6,0.00373769]
[1763567172277,3.2078,2990.5,2989.6,0.00373769]
[1763567172474,3.21090827,2990.9,2990.0,3.8736]
[1763567172679,3.2078,2990.5,2989.6,0.00373769]
[1763567172880,3.2078,2990.1,2989.6,0.00373769]
[1763567173082,0.00501412,2990.1,2989.6,0.00875181]
[1763567173280,0.00501412,2990.1,2989.7,3.2078]
[1763567173578,0.00501412,2990.1,2990.0,3.8736]
[1763567173773,1.08412,2990.8,2990.0,3.8736]
[1763567173977,0.00310827,2990.9,2990.0,3.8736]
[1763567174380,1.08416,2990.7,2990.0,3.8736]
[1763567174589,1.08416,2990.7,2990.0,0.6658]
[1763567174590,3.2078,2990.4,2990.0,0.6658]
[1763567174784,1.08416,2990.7,2990.0,0.6658]
[1763567175089,1.08416,2990.7,2990.4,3.2078]
[1763567175296,1.08416,2990.7,2990.1,3.2078]
[1763567176388,0.00310827,2990.9,2990.4,3.2078]
[1763567176891,0.00310827,2990.9,2990.1,3.2078]
[1763567177086,0.00310827,2990.9,2990.1,6.6688]
[1763567177689,0.00310827,2990.9,2990.4,3.2078]
[1763567178579,3.2078,2992.1,2991.0,0.6658]
[1763567178777,3.2078,2992.1,2991.3,0.00501412]
[1763567178990,3.2078,2991.7,2991.3,0.00501412]
[1763567179188,1.08382,2991.6,2991.3,0.00501412]
[1763567179689,3.2078,2991.4,2990.0,4.1238]
[1763567179889,3.2078,2990.9,2990.0,7.3316]
[1763567180282,3.2078,2990.2,2989.0,0.7603]
[1763567180485,1.0845,2989.7,2989.0,0.7603]
[1763567180781,1.0845,2989.7,2989.4,0.00501412]
[1763567181879,1.0842,2990.6,2989.6,3.21153769]
[1763567182084,3.2078,2991.1,2990.2,3.2078]
[1763567182286,1.08695526,2991.6,2990.0,0.6658]
[1763567182287,0.00311526,2991.6,2991.0,3.8736]
[1763567182593,1.526e-05,2991.6,2991.4,3.2078]
[1763567182885,1.526e-05,2991.6,2991.2,0.00501412]
[1763567183091,1.526e-05,2991.6,2991.2,3.21281412]
[1763567183291,1.08386,2991.5,2991.2,0.00501412]
[1763567183689,3.2078,2991.3,2990.3,3.2078]
[1763567183882,3.2078,2991.3,2990.2,3.2078]
[1763567183883,1.0841,2990.9,2990.2,3.2078]
[1763567184083,1.0841,2990.9,2990.5,3.2078]
[1763567184495,1.0841,2990.9,2990.2,3.2078]
[1763567184695,0.00501412,2990.8,2990.3,0.00501412]
[1763567184991,1.08444,2989.9,2989.6,3.21153769]
[1763567185181,1.08448,2989.8,2989.6,0.00373769]
[1763567186790,1.0845,2989.7,2989.6,0.00373769]
[1763567188094,1.08458,2989.5,2989.4,0.00501412]
[1763567188297,4.29238,2989.5,2989.4,0.00501412]
[1763567189093,4.29238,2989.5,2989.4,0.00768536]
[1763567189094,4.29606137,2989.5,2989.4,0.00768536]
[1763567189498,4.29606137,2989.5,2988.9,3.2078]
[1763567189499,1.08476,2989.0,2988.9,3.2078]
[1763567190195,0.00368137,2989.5,2988.9,3.2078]
[1763567190401,1.08476,2989.0,2988.9,3.21547299]
[1763567190585,3.2078,2989.1,2988.0,0.7603]
[1763567190586,1.08508,2988.1,2988.0,0.7603]
[1763567190791,3.2078,2988.4,2988.0,0.7603]
[1763567190987,3.2078,2988.8,2988.0,0.7603]
[1763567191195,3.75015,2989.2,2988.2,3.2078]
[1763567191489,3.2078,2988.6,2988.0,0.7603]
[1763567191685,3.2078,2988.6,2988.0,0.00815664]
[1763567191890,1.08502,2988.3,2988.0,0.00815664]
[1763567192286,3.2078,2988.6,2988.0,0.00815664]
[1763567192694,3.2078,2988.6,2988.0,0.71535664]
[1763567192899,3.2078,2988.8,2988.3,3.2078]
[1763567193095,3.2078,2989.3,2988.3,3.2078]
[1763567193392,3.2078,2988.7,2988.0,3.92315664]
[1763567193598,2.71823886,2989.5,2988.0,3.92315664]
[1763567193599,4.2928,2988.4,2988.0,0.00815664]
[1763567193906,4.29288,2988.1,2988.0,0.00815664]
[1763567194400,1.08531,2987.5,2986.8,3.2078]
[1763567194901,1.08553,2986.9,2986.1,3.2078]
[1763567195098,3.2078,2987.3,2986.6,3.2078]
[1763567195294,0.0050226,2987.2,2986.7,0.0050226]
[1763567195494,0.0050226,2987.2,2987.0,3.915]
[1763567195689,0.54251,2988.3,2987.0,3.915]
[1763567195898,3.2078,2988.1,2987.3,3.2078]
[1763567196095,4.29289,2988.1,2987.3,3.2078]
[1763567196394,0.54268,2987.4,2986.7,3.2128226]
[1763567196600,3.75051,2987.2,2986.7,0.0050226]
[1763567196788,3.2078,2986.8,2986.7,0.0050226]
[1763567197194,4.29336,2986.8,2986.7,0.0050226]
[1763567197490,4.29336,2986.8,2986.7,2.26e-05]
[1763567197694,0.54286,2986.4,2985.9,3.2078]
[1763567197995,3.2078,2986.8,2986.3,3.2078]
[1763567198189,3.2078,2986.9,2986.3,3.2078]
[1763567198596,3.2078,2986.9,2986.3,3.21703696]
[1763567198799,4.29332,2986.9,2986.3,3.21703696]
[1763567198992,1.08552,2986.9,2986.6,3.2078]
[1763567199396,3.21695452,2987.2,2986.6,3.2078]
[1763567199604,3.21695452,2987.2,2987.0,0.7072]
[1763567199903,3.21695452,2987.2,2986.3,0.00923696]
[1763567200098,3.2078,2986.6,2986.3,0.00923696]
[1763567200489,4.29344,2986.6,2986.3,0.00923696]
[1763567201091,3.2078,2986.6,2986.3,0.00923696]
[1763567201404,1.0857,2986.4,2986.3,0.00923696]
[1763567201700,3.2078,2986.6,2986.3,0.00923696]
[1763567202308,1.0857,2986.4,2986.3,0.00923696]
[1763567202597,3.2078,2986.6,2986.3,6.00923696]
[1763567202802,0.00915452,2987.2,2986.3,3.21703696]
[1763567203003,0.00915452,2987.2,2986.3,0.00923696]
[1763567203204,3.21695452,2987.2,2986.5,3.2078]
[1763567203498,3.21695452,2987.2,2986.3,0.00923696]
[1763567203499,3.2078,2988.6,2987.0,3.915]
[1763567203798,3.2078,2988.9,2988.0,3.915]
[1763567204001,3.2078,2989.3,2988.8,3.2078]
[1763567204203,4.29224,2989.9,2988.8,3.2078]
[1763567204499,3.2128226,2989.6,2988.8,0.00243591]
[1763567204702,3.2128226,2989.6,2989.1,0.0050226]
[1763567205599,3.2078,2989.3,2989.1,0.0050226]
[1763567205905,1.08468,2989.2,2989.1,0.0050226]
[1763567206293,1.08468,2989.2,2989.1,2.26e-05]
[1763567206495,6.0,2989.2,2988.8,0.00243591]
[1763567206690,3.2078,2989.3,2988.8,0.00243591]
[1763567206691,3.2078,2988.9,2988.8,0.00243591]
[1763567207092,3.2128226,2989.6,2988.8,0.00243591]
[1763567207395,3.2078,2989.1,2988.8,0.00243591]
[1763567207909,1.0848,2988.9,2988.8,0.00243591]
[1763567208203,3.2078,2989.4,2988.8,0.00243591]
[1763567208696,0.0050226,2989.6,2988.8,0.00243591]
[1763567208901,0.0050226,2989.6,2988.9,3.2078]
[1763567209099,3.4572,2989.0,2987.3,3.2078]
[1763567209295,3.4572,2989.0,2986.0,7.84937452]
[1763567209296,4.29298,2987.9,2986.5,3.48256536]
[1763567209491,1.0852,2987.8,2987.0,3.915]
[1763567209700,3.2078,2987.6,2987.0,0.7072]
[1763567209905,1.0852,2987.8,2987.0,3.915]
[1763567210104,0.0050226,2987.7,2987.3,3.2078]
[1763567210401,0.00361947,2987.8,2987.3,3.2078]
[1763567211002,0.00361947,2987.8,2987.1,3.45136255]
[1763567211198,0.00361947,2987.8,2987.3,3.2078]